fUST/lending_fUST_20260608
["ID","MTS","AMOUNT","RATE_DAILY","PERIOD"]
[424421087,1780866639000,-500.0,0.00019178,2]
[424421079,1780866639000,-1287.44,0.00019178,2]
[424421088,1780866639000,-500.0,0.00019178,2]
[424421073,1780866639000,-1028.61,0.00019178,2]
[424421071,1780866639000,-500.0,0.00019178,2]
[424421072,1780866639000,-658.94,0.00019178,2]
[424421070,1780866639000,-689.77,0.00019178,2]
[424421066,1780866639000,-1176.61,0.00019178,2]
[424421068,1780866639000,-500.0,0.00019178,2]
[424421074,1780866639000,-500.0,0.00019178,2]
[424421077,1780866639000,-500.0,0.00019178,2]
[424421076,1780866639000,-500.0,0.00019178,2]
[424421086,1780866639000,-500.0,0.00019178,2]
[424421100,1780866639000,-500.0,0.00019178,2]
[424421084,1780866639000,-839.41,0.00019178,2]
[424421081,1780866639000,-500.0,0.00019178,2]
[424421085,1780866639000,-500.0,0.00019178,2]
[424421078,1780866639000,-556.62,0.00019178,2]
[424421080,1780866639000,-622.07,0.00019178,2]
[424421083,1780866639000,-500.0,0.00019178,2]
[424421089,1780866639000,-2238.28,0.00019178,2]
[424421069,1780866639000,-500.0,0.00019178,2]
[424421082,1780866639000,-500.0,0.00019178,2]
[424421075,1780866639000,-736.28,0.00019178,2]
[424421048,1780866639000,-500.0,0.00019178,2]
[424421065,1780866639000,-500.0,0.00019178,2]
[424421052,1780866639000,-786.66,0.00019178,2]
[424421041,1780866639000,-500.0,0.00019178,2]
[424421051,1780866639000,-500.0,0.00019178,2]
[424421053,1780866639000,-500.0,0.00019178,2]
[424421043,1780866639000,-201.24685168,0.00019178,2]
[424421042,1780866639000,-500.0,0.00019178,2]
[424421044,1780866639000,-500.0,0.00019178,2]
[424421047,1780866639000,-500.0,0.00019178,2]
[424421046,1780866639000,-513.24,0.00019178,2]
[424421045,1780866639000,-500.0,0.00019178,2]
[424421050,1780866639000,-500.0,0.00019178,2]
[424421049,1780866639000,-500.0,0.00019178,2]
[424421055,1780866639000,-529.27,0.00019178,2]
[424421056,1780866639000,-500.0,0.00019178,2]
[424421054,1780866639000,-292.9289754,0.00019178,2]
[424421057,1780866639000,-500.0,0.00019178,2]
[424421058,1780866639000,-500.0,0.00019178,2]
[424421059,1780866639000,-500.0,0.00019178,2]
[424421063,1780866639000,-500.0,0.00019178,2]
[424421062,1780866639000,-500.0,0.00019178,2]
[424421061,1780866639000,-500.0,0.00019178,2]
[424421060,1780866639000,-803.36,0.00019178,2]
[424421064,1780866639000,-500.0,0.00019178,2]
[424421067,1780866639000,-500.0,0.00019178,2]
[424421090,1780866639000,-500.0,0.00019178,2]
[424421102,1780866639000,-500.0,0.00019178,2]
[424421091,1780866639000,-731.21,0.00019178,2]
[424421123,1780866639000,-500.0,0.00019178,2]
[424421124,1780866639000,-500.0,0.00019178,2]
[424421126,1780866639000,-963.55,0.00019178,2]
[424421121,1780866639000,-993.68,0.00019178,2]
[424421125,1780866639000,-500.0,0.00019178,2]
[424421127,1780866639000,-690.65,0.00019178,2]
[424421136,1780866639000,-500.0,0.00019178,2]
[424421133,1780866639000,-630.47,0.00019178,2]
[424421134,1780866639000,-500.0,0.00019178,2]
[424421131,1780866639000,-545.22,0.00019178,2]
[424421129,1780866639000,-598.47,0.00019178,2]
[424421135,1780866639000,-500.0,0.00019178,2]
[424421132,1780866639000,-500.0,0.00019178,2]
[424421130,1780866639000,-1519.95,0.00019178,2]
[424421137,1780866639000,-860.91,0.00019178,2]
[424421139,1780866639000,-500.0,0.00019178,2]
[424421141,1780866639000,-500.0,0.00019178,2]
[424421140,1780866639000,-500.0,0.00019178,2]
[424421138,1780866639000,-500.0,0.00019178,2]
[424421142,1780866639000,-770.59,0.00019178,2]
[424421143,1780866639000,-500.0,0.00019178,2]
[424421144,1780866639000,-435.02648594,0.00019178,2]
[424421101,1780866639000,-940.65,0.00019178,2]
[424421122,1780866639000,-500.0,0.00019178,2]
[424421120,1780866639000,-594.16118873,0.00019178,2]
[424421128,1780866639000,-1815.78,0.00019178,2]
[424421119,1780866639000,-500.0,0.00019178,2]
[424421096,1780866639000,-500.0,0.00019178,2]
[424421118,1780866639000,-500.0,0.00019178,2]
[424421094,1780866639000,-1785.42,0.00019178,2]
[424421093,1780866639000,-500.0,0.00019178,2]
[424421098,1780866639000,-500.0,0.00019178,2]
[424421095,1780866639000,-1507.94,0.00019178,2]
[424421092,1780866639000,-500.0,0.00019178,2]
[424421099,1780866639000,-500.0,0.00019178,2]
[424421103,1780866639000,-645.85929236,0.00019178,2]
[424421104,1780866639000,-705.53,0.00019178,2]
[424421106,1780866639000,-500.0,0.00019178,2]
[424421105,1780866639000,-500.0,0.00019178,2]
[424421097,1780866639000,-500.0,0.00019178,2]
[424421108,1780866639000,-411.85307051,0.00019178,2]
[424421115,1780866639000,-500.0,0.00019178,2]
[424421109,1780866639000,-500.0,0.00019178,2]
[424421117,1780866639000,-548.3,0.00019178,2]
[424421113,1780866639000,-523.59,0.00019178,2]
[424421114,1780866639000,-525.47,0.00019178,2]
[424421116,1780866639000,-618.83616006,0.00019178,2]
[424421112,1780866639000,-627.75967399,0.00019178,2]
[424421110,1780866639000,-500.0,0.00019178,2]
[424421107,1780866639000,-960.6,0.00019178,2]
[424421111,1780866639000,-3579.0,0.00019178,2]
[424421182,1780866640000,-500.0,0.00019178,2]
[424421173,1780866640000,-500.0,0.00019178,2]
[424421176,1780866640000,-500.0,0.00019178,2]
[424421178,1780866640000,-500.0,0.00019178,2]
[424421175,1780866640000,-500.0,0.00019178,2]
[424421174,1780866640000,-500.0,0.00019178,2]
[424421177,1780866640000,-500.0,0.00019178,2]
[424421181,1780866640000,-764.3,0.00019178,2]
[424421179,1780866640000,-500.0,0.00019178,2]
[424421180,1780866640000,-540.69340715,0.00019178,2]
[424421183,1780866640000,-1081.85,0.00019178,2]
[424421196,1780866640000,-48003.96,0.00019178,2]
[424421184,1780866640000,-7294.34,0.00019178,2]
[424421191,1780866640000,-568.44,0.00019178,2]
[424421193,1780866640000,-500.0,0.00019178,2]
[424421188,1780866640000,-500.0,0.00019178,2]
[424421186,1780866640000,-535.45,0.00019178,2]
[424421190,1780866640000,-3539.63,0.00019178,2]
[424421192,1780866640000,-500.0,0.00019178,2]
[424421189,1780866640000,-708.81,0.00019178,2]
[424421194,1780866640000,-2130.9,0.00019178,2]
[424421172,1780866640000,-951.21,0.00019178,2]
[424421185,1780866640000,-618.21,0.00019178,2]
[424421169,1780866640000,-500.0,0.00019178,2]
[424421145,1780866640000,-64.97351406,0.00019178,2]
[424421171,1780866640000,-293.27681395,0.00019178,2]
[424421195,1780866640000,-3930.97,0.00019178,2]
[424421147,1780866640000,-615.78,0.00019178,2]
[424421148,1780866640000,-500.0,0.00019178,2]
[424421149,1780866640000,-1127.12,0.00019178,2]
[424421146,1780866640000,-550.58,0.00019178,2]
[424421150,1780866640000,-500.0,0.00019178,2]
[424421151,1780866640000,-500.0,0.00019178,2]
[424421153,1780866640000,-500.0,0.00019178,2]
[424421152,1780866640000,-2123.74,0.00019178,2]
[424421154,1780866640000,-500.0,0.00019178,2]
[424421157,1780866640000,-1175.76,0.00019178,2]
[424421170,1780866640000,-544.77822561,0.00019178,2]
[424421155,1780866640000,-365.71313372,0.00019178,2]
[424421158,1780866640000,-500.0,0.00019178,2]
[424421159,1780866640000,-715.75,0.00019178,2]
[424421160,1780866640000,-556.55,0.00019178,2]
[424421161,1780866640000,-574.40996841,0.00019178,2]
[424421162,1780866640000,-633.13,0.00019178,2]
[424421163,1780866640000,-1756.92,0.00019178,2]
[424421168,1780866640000,-500.0,0.00019178,2]
[424421165,1780866640000,-579.3,0.00019178,2]
[424421167,1780866640000,-954.65,0.00019178,2]
[424421164,1780866640000,-500.0,0.00019178,2]
[424421166,1780866640000,-500.0,0.00019178,2]
[424421156,1780866640000,-178.24686628,0.00019178,2]
[424421202,1780866640000,-500.0,0.00019178,2]
[424421187,1780866640000,-500.0,0.00019178,2]
[424421198,1780866640000,-500.0,0.00019178,2]
[424421237,1780866640000,-500.0,0.00019178,2]
[424421231,1780866640000,-500.0,0.00019178,2]
[424421229,1780866640000,-500.0,0.00019178,2]
[424421236,1780866640000,-2976.25,0.00019178,2]
[424421233,1780866640000,-500.0,0.00019178,2]
[424421230,1780866640000,-500.0,0.00019178,2]
[424421235,1780866640000,-587.26098464,0.00019178,2]
[424421228,1780866640000,-500.0,0.00019178,2]
[424421234,1780866640000,-1021.61,0.00019178,2]
[424421226,1780866640000,-1067.25,0.00019178,2]
[424421232,1780866640000,-500.0,0.00019178,2]
[424421239,1780866640000,-265.00805502,0.00019178,2]
[424421241,1780866640000,-500.0,0.00019178,2]
[424421245,1780866640000,-500.0,0.00019178,2]
[424421240,1780866640000,-941.03,0.00019178,2]
[424421251,1780866640000,-11267.67,0.00019178,2]
[424421246,1780866640000,-1825.58,0.00019178,2]
[424421249,1780866640000,-1496.92,0.00019178,2]
[424421244,1780866640000,-500.0,0.00019178,2]
[424421247,1780866640000,-500.0,0.00019178,2]
[424421250,1780866640000,-4227.76,0.00019178,2]
[424421248,1780866640000,-500.0,0.00019178,2]
[424421201,1780866640000,-612.11,0.00019178,2]
[424421227,1780866640000,-500.0,0.00019178,2]
[424421238,1780866640000,-500.0,0.00019178,2]
[424421242,1780866640000,-500.0,0.00019178,2]
[424421220,1780866640000,-500.0,0.00019178,2]
[424421197,1780866640000,-500.0,0.00019178,2]
[424421223,1780866640000,-500.0,0.00019178,2]
[424421200,1780866640000,-500.0,0.00019178,2]
[424421204,1780866640000,-500.0,0.00019178,2]
[424421199,1780866640000,-1000.0,0.00019178,2]
[424421203,1780866640000,-1637.77,0.00019178,2]
[424421206,1780866640000,-500.0,0.00019178,2]
[424421207,1780866640000,-500.0,0.00019178,2]
[424421208,1780866640000,-500.0,0.00019178,2]
[424421209,1780866640000,-1257.74,0.00019178,2]
[424421212,1780866640000,-3059.87,0.00019178,2]
[424421210,1780866640000,-613.19626374,0.00019178,2]
[424421205,1780866640000,-1323.56,0.00019178,2]
[424421221,1780866640000,-5661.58,0.00019178,2]
[424421219,1780866640000,-500.0,0.00019178,2]
[424421211,1780866640000,-500.0,0.00019178,2]
[424421224,1780866640000,-500.0,0.00019178,2]
[424421222,1780866640000,-987.11,0.00019178,2]
[424421218,1780866640000,-500.0,0.00019178,2]
[424421214,1780866640000,-500.0,0.00019178,2]
[424421217,1780866640000,-733.0,0.00019178,2]
[424421225,1780866640000,-500.0,0.00019178,2]
[424421213,1780866640000,-229.87779621,0.00019178,2]
[424421215,1780866640000,-3301.16,0.00019178,2]
[424421216,1780866640000,-794.69,0.00019178,2]
[424421299,1780866641000,-151.0,0.00019178,2]
[424421293,1780866641000,-500.0,0.00019178,2]
[424421302,1780866641000,-151.0,0.00019178,2]
[424421298,1780866641000,-4655.17,0.00019178,2]
[424421303,1780866641000,-1564.58,0.00019178,2]
[424421285,1780866641000,-500.0,0.00019178,2]
[424421286,1780866641000,-500.0,0.00019178,2]
[424421291,1780866641000,-716.2,0.00019178,2]
[424421284,1780866641000,-12143.35,0.00019178,2]
[424421287,1780866641000,-655.8,0.00019178,2]
[424421288,1780866641000,-2258.79,0.00019178,2]
[424421296,1780866641000,-511.99,0.00019178,2]
[424421294,1780866641000,-1601.57,0.00019178,2]
[424421297,1780866641000,-151.0,0.00019178,2]
[424421313,1780866641000,-248.97670468,0.00019354,2]
[424421300,1780866641000,-151.0,0.00019178,2]
[424421292,1780866641000,-500.0,0.00019178,2]
[424421301,1780866641000,-151.0,0.00019178,2]
[424421304,1780866641000,-500.0,0.00019178,2]
[424421305,1780866641000,-1125.67,0.00019178,2]
[424421306,1780866641000,-511.26,0.00019178,2]
[424421307,1780866641000,-5421.64,0.00019178,2]
[424421315,1780866641000,-206.54949309,0.00019382,2]
[424421310,1780866641000,-156.0,0.00019254,2]
[424421309,1780866641000,-154.22,0.00019178,2]
[424421311,1780866641000,-10087.21650644,0.00019279,30]
[424421316,1780866641000,-161.15202813,0.00019382,2]
[424421314,1780866641000,-234.63187673,0.00019354,2]
[424421289,1780866641000,-500.0,0.00019178,2]
[424421295,1780866641000,-151.0,0.00019178,2]
[424421283,1780866641000,-659.51,0.00019178,2]
[424421263,1780866641000,-500.0,0.00019178,2]
[424421281,1780866641000,-10956.74,0.00019178,2]
[424421253,1780866641000,-961.04,0.00019178,2]
[424421252,1780866641000,-500.0,0.00019178,2]
[424421265,1780866641000,-232.1150794,0.00019178,2]
[424421255,1780866641000,-500.0,0.00019178,2]
[424421254,1780866641000,-8318.22,0.00019178,2]
[424421261,1780866641000,-654.13,0.00019178,2]
[424421256,1780866641000,-763.79,0.00019178,2]
[424421260,1780866641000,-535.95,0.00019178,2]
[424421262,1780866641000,-5723.6,0.00019178,2]
[424421259,1780866641000,-500.0,0.00019178,2]
[424421264,1780866641000,-500.0,0.00019178,2]
[424421257,1780866641000,-2518.25,0.00019178,2]
[424421258,1780866641000,-4749.81,0.00019178,2]
[424421267,1780866641000,-1052.7,0.00019178,2]
[424421290,1780866641000,-541.2381865,0.00019178,2]
[424421268,1780866641000,-4191.19,0.00019178,2]
[424421266,1780866641000,-500.0,0.00019178,2]
[424421277,1780866641000,-500.0,0.00019178,2]
[424421273,1780866641000,-500.0,0.00019178,2]
[424421271,1780866641000,-3230.56,0.00019178,2]
[424421272,1780866641000,-500.0,0.00019178,2]
[424421278,1780866641000,-6339.38,0.00019178,2]
[424421269,1780866641000,-500.0,0.00019178,2]
[424421276,1780866641000,-500.0,0.00019178,2]
[424421275,1780866641000,-2714.36,0.00019178,2]
[424421274,1780866641000,-10499.29,0.00019178,2]
[424421270,1780866641000,-500.0,0.00019178,2]
[424421280,1780866641000,-948.69,0.00019178,2]
[424421279,1780866641000,-500.0,0.00019178,2]
[424421282,1780866641000,-500.0,0.00019178,2]
[424421308,1780866641000,-976.04,0.00019178,2]
[424421312,1780866641000,-234.08672081,0.00019354,2]
[424421366,1780866641000,-184.53395573,0.00019452,2]
[424421319,1780866641000,-1523.3828,0.00019452,2]
[424421354,1780866641000,-500.0,0.00019452,2]
[424421357,1780866641000,-803.36,0.00019452,2]
[424421356,1780866641000,-500.0,0.00019452,2]
[424421351,1780866641000,-500.0,0.00019452,2]
[424421358,1780866641000,-500.0,0.00019452,2]
[424421353,1780866641000,-500.0,0.00019452,2]
[424421371,1780866641000,-500.0,0.00019452,2]
[424421359,1780866641000,-500.0,0.00019452,2]
[424421362,1780866641000,-500.0,0.00019452,2]
[424421360,1780866641000,-500.0,0.00019452,2]
[424421370,1780866641000,-1028.61,0.00019452,2]
[424421361,1780866641000,-500.0,0.00019452,2]
[424421364,1780866641000,-500.0,0.00019452,2]
[424421365,1780866641000,-500.0,0.00019452,2]
[424421363,1780866641000,-1176.61,0.00019452,2]
[424421369,1780866641000,-658.94,0.00019452,2]
[424421368,1780866641000,-500.0,0.00019452,2]
[424421372,1780866641000,-736.28,0.00019452,2]
[424421375,1780866641000,-556.62,0.00019452,2]
[424421378,1780866641000,-622.07,0.00019452,2]
[424421377,1780866641000,-500.0,0.00019452,2]
[424421376,1780866641000,-1287.44,0.00019452,2]
[424421379,1780866641000,-500.0,0.00019452,2]
[424421374,1780866641000,-500.0,0.00019452,2]
[424421380,1780866641000,-291.29486294,0.00019452,2]
[424421382,1780866641000,-500.0,0.00019452,2]
[424421373,1780866641000,-500.0,0.00019452,2]
[424421381,1780866641000,-839.41,0.00019452,2]
[424421317,1780866641000,-507.7844,0.00019452,2]
[424421352,1780866641000,-529.27,0.00019452,2]
[424421355,1780866641000,-500.0,0.00019452,2]
[424421367,1780866641000,-689.77,0.00019452,2]
[424421349,1780866641000,-500.0,0.00019452,2]
[424421321,1780866641000,-546.63,0.00019452,2]
[424421330,1780866641000,-907.78,0.00019452,2]
[424421323,1780866641000,-500.0,0.00019452,2]
[424421328,1780866641000,-1111.51,0.00019452,2]
[424421320,1780866641000,-500.0,0.00019452,2]
[424421324,1780866641000,-1656.07,0.00019452,2]
[424421329,1780866641000,-500.0,0.00019452,2]
[424421318,1780866641000,-179.6668,0.00019452,2]
[424421326,1780866641000,-306.19227092,0.00019452,2]
[424421327,1780866641000,-500.0,0.00019452,2]
[424421325,1780866641000,-500.0,0.00019452,2]
[424421342,1780866641000,-500.0,0.00019452,2]
[424421332,1780866641000,-500.0,0.00019452,2]
[424421343,1780866641000,-500.0,0.00019452,2]
[424421344,1780866641000,-500.0,0.00019452,2]
[424421322,1780866641000,-500.0,0.00019452,2]
[424421331,1780866641000,-555.30440101,0.00019452,2]
[424421350,1780866641000,-786.66,0.00019452,2]
[424421346,1780866641000,-513.24,0.00019452,2]
[424421348,1780866641000,-500.0,0.00019452,2]
[424421345,1780866641000,-500.0,0.00019452,2]
[424421341,1780866641000,-661.75,0.00019452,2]
[424421338,1780866641000,-500.0,0.00019452,2]
[424421347,1780866641000,-500.0,0.00019452,2]
[424421339,1780866641000,-1537.32,0.00019452,2]
[424421337,1780866641000,-1054.9,0.00019452,2]
[424421336,1780866641000,-1677.59,0.00019452,2]
[424421335,1780866641000,-500.0,0.00019452,2]
[424421334,1780866641000,-500.0,0.00019452,2]
[424421333,1780866641000,-500.0,0.00019452,2]
[424421340,1780866641000,-500.0,0.00019452,2]
[424421427,1780866642000,-500.0,0.00019452,2]
[424421424,1780866642000,-860.91,0.00019452,2]
[424421423,1780866642000,-500.0,0.00019452,2]
[424421418,1780866642000,-598.47,0.00019452,2]
[424421421,1780866642000,-500.0,0.00019452,2]
[424421420,1780866642000,-545.22,0.00019452,2]
[424421425,1780866642000,-153.97618788,0.00019452,2]
[424421422,1780866642000,-630.47,0.00019452,2]
[424421417,1780866642000,-1815.78,0.00019452,2]
[424421415,1780866642000,-963.55,0.00019452,2]
[424421426,1780866642000,-500.0,0.00019452,2]
[424421416,1780866642000,-690.65,0.00019452,2]
[424421419,1780866642000,-1519.95,0.00019452,2]
[424421428,1780866642000,-500.0,0.00019452,2]
[424421433,1780866642000,-615.78,0.00019452,2]
[424421437,1780866642000,-638.94288835,0.00019452,2]
[424421431,1780866642000,-500.0,0.00019452,2]
[424421430,1780866642000,-500.0,0.00019452,2]
[424421429,1780866642000,-770.59,0.00019452,2]
[424421432,1780866642000,-550.58,0.00019452,2]
[424421438,1780866642000,-2123.74,0.00019452,2]
[424421434,1780866642000,-500.0,0.00019452,2]
[424421440,1780866642000,-500.0,0.00019452,2]
[424421450,1780866642000,-500.0,0.00019452,2]
[424421439,1780866642000,-500.0,0.00019452,2]
[424421451,1780866642000,-954.65,0.00019452,2]
[424421452,1780866642000,-500.0,0.00019452,2]
[424421401,1780866642000,-960.6,0.00019452,2]
[424421436,1780866642000,-500.0,0.00019452,2]
[424421412,1780866642000,-500.0,0.00019452,2]
[424421398,1780866642000,-500.0,0.00019452,2]
[424421410,1780866642000,-993.68,0.00019452,2]
[424421384,1780866642000,-500.0,0.00019452,2]
[424421383,1780866642000,-409.6554965,0.00019452,2]
[424421385,1780866642000,-500.0,0.00019452,2]
[424421397,1780866642000,-940.65,0.00019452,2]
[424421396,1780866642000,-500.0,0.00019452,2]
[424421390,1780866642000,-500.0,0.00019452,2]
[424421393,1780866642000,-500.0,0.00019452,2]
[424421399,1780866642000,-705.53,0.00019452,2]
[424421387,1780866642000,-500.0,0.00019452,2]
[424421391,1780866642000,-1785.42,0.00019452,2]
[424421395,1780866642000,-500.0,0.00019452,2]
[424421392,1780866642000,-1507.94,0.00019452,2]
[424421389,1780866642000,-500.0,0.00019452,2]
[424421407,1780866642000,-500.0,0.00019452,2]
[424421386,1780866642000,-2238.28,0.00019452,2]
[424421388,1780866642000,-731.21,0.00019452,2]
[424421394,1780866642000,-507.02863497,0.00019452,2]
[424421400,1780866642000,-500.0,0.00019452,2]
[424421404,1780866642000,-3579.0,0.00019452,2]
[424421405,1780866642000,-523.59,0.00019452,2]
[424421408,1780866642000,-548.3,0.00019452,2]
[424421406,1780866642000,-525.47,0.00019452,2]
[424421411,1780866642000,-500.0,0.00019452,2]
[424421413,1780866642000,-500.0,0.00019452,2]
[424421414,1780866642000,-500.0,0.00019452,2]
[424421402,1780866642000,-211.26660985,0.00019452,2]
[424421403,1780866642000,-500.0,0.00019452,2]
[424421409,1780866642000,-500.0,0.00019452,2]
[424421441,1780866642000,-1175.76,0.00019452,2]
[424421446,1780866642000,-633.13,0.00019452,2]
[424421435,1780866642000,-1127.12,0.00019452,2]
[424421443,1780866642000,-500.0,0.00019452,2]
[424421483,1780866642000,-190.02280059,0.00019452,2]
[424421484,1780866642000,-500.0,0.00019452,2]
[424421482,1780866642000,-1323.56,0.00019452,2]
[424421487,1780866642000,-645.55947452,0.00019452,2]
[424421479,1780866642000,-612.11,0.00019452,2]
[424421481,1780866642000,-1637.77,0.00019452,2]
[424421485,1780866642000,-500.0,0.00019452,2]
[424421488,1780866642000,-3059.87,0.00019452,2]
[424421491,1780866642000,-794.69,0.00019452,2]
[424421492,1780866642000,-733.0,0.00019452,2]
[424421490,1780866642000,-3301.16,0.00019452,2]
[424421493,1780866642000,-500.0,0.00019452,2]
[424421497,1780866642000,-500.0,0.00019452,2]
[424421494,1780866642000,-500.0,0.00019452,2]
[424421495,1780866642000,-5661.58,0.00019452,2]
[424421499,1780866642000,-500.0,0.00019452,2]
[424421498,1780866642000,-500.0,0.00019452,2]
[424421496,1780866642000,-987.11,0.00019452,2]
[424421489,1780866642000,-500.0,0.00019452,2]
[424421500,1780866642000,-1067.25,0.00019452,2]
[424421502,1780866642000,-500.0,0.00019452,2]
[424421504,1780866642000,-500.0,0.00019452,2]
[424421501,1780866642000,-500.0,0.00019452,2]
[424421503,1780866642000,-474.23161526,0.00019452,2]
[424421507,1780866642000,-500.0,0.00019452,2]
[424421505,1780866642000,-500.0,0.00019452,2]
[424421508,1780866642000,-1021.61,0.00019452,2]
[424421506,1780866642000,-500.0,0.00019452,2]
[424421447,1780866642000,-1756.92,0.00019452,2]
[424421475,1780866642000,-48003.96,0.00019452,2]
[424421477,1780866642000,-500.0,0.00019452,2]
[424421509,1780866642000,-2976.25,0.00019452,2]
[424421480,1780866642000,-500.0,0.00019452,2]
[424421478,1780866642000,-500.0,0.00019452,2]
[424421444,1780866642000,-715.75,0.00019452,2]
[424421442,1780866642000,-543.96,0.00019452,2]
[424421445,1780866642000,-556.55,0.00019452,2]
[424421449,1780866642000,-579.3,0.00019452,2]
[424421453,1780866642000,-500.0,0.00019452,2]
[424421456,1780866642000,-500.0,0.00019452,2]
[424421464,1780866642000,-618.21,0.00019452,2]
[424421455,1780866642000,-500.0,0.00019452,2]
[424421454,1780866642000,-951.21,0.00019452,2]
[424421465,1780866642000,-535.45,0.00019452,2]
[424421459,1780866642000,-500.0,0.00019452,2]
[424421457,1780866642000,-500.0,0.00019452,2]
[424421462,1780866642000,-1081.85,0.00019452,2]
[424421448,1780866642000,-500.0,0.00019452,2]
[424421473,1780866642000,-2130.9,0.00019452,2]
[424421486,1780866642000,-1257.74,0.00019452,2]
[424421476,1780866642000,-500.0,0.00019452,2]
[424421474,1780866642000,-3930.97,0.00019452,2]
[424421471,1780866642000,-500.0,0.00019452,2]
[424421463,1780866642000,-7294.34,0.00019452,2]
[424421470,1780866642000,-568.44,0.00019452,2]
[424421469,1780866642000,-3539.63,0.00019452,2]
[424421472,1780866642000,-500.0,0.00019452,2]
[424421466,1780866642000,-500.0,0.00019452,2]
[424421467,1780866642000,-500.0,0.00019452,2]
[424421461,1780866642000,-340.9671843,0.00019452,2]
[424421460,1780866642000,-764.3,0.00019452,2]
[424421458,1780866642000,-500.0,0.00019452,2]
[424421468,1780866642000,-708.81,0.00019452,2]
[424421554,1780866643000,-12143.35,0.00019452,2]
[424421553,1780866643000,-659.51,0.00019452,2]
[424421573,1780866643000,-300.0,0.00019589,3]
[424421552,1780866643000,-500.0,0.00019452,2]
[424421547,1780866643000,-500.0,0.00019452,2]
[424421558,1780866643000,-500.0,0.00019452,2]
[424421533,1780866643000,-500.0,0.00019452,2]
[424421549,1780866643000,-500.0,0.00019452,2]
[424421550,1780866643000,-948.69,0.00019452,2]
[424421551,1780866643000,-10956.74,0.00019452,2]
[424421548,1780866643000,-6339.38,0.00019452,2]
[424421546,1780866643000,-2714.36,0.00019452,2]
[424421557,1780866643000,-2258.79,0.00019452,2]
[424421555,1780866643000,-500.0,0.00019452,2]
[424421561,1780866643000,-500.0,0.00019452,2]
[424421571,1780866643000,-154.22,0.00019452,2]
[424421570,1780866643000,-976.04,0.00019452,2]
[424421572,1780866643000,-600.0,0.00019561,2]
[424421559,1780866643000,-716.2,0.00019452,2]
[424421562,1780866643000,-1601.57,0.00019452,2]
[424421564,1780866643000,-4655.17,0.00019452,2]
[424421566,1780866643000,-500.0,0.00019452,2]
[424421565,1780866643000,-1564.58,0.00019452,2]
[424421568,1780866643000,-511.26,0.00019452,2]
[424421569,1780866643000,-5421.64,0.00019452,2]
[424421567,1780866643000,-1125.67,0.00019452,2]
[424421563,1780866643000,-511.99,0.00019452,2]
[424421538,1780866643000,-4191.19,0.00019452,2]
[424421560,1780866643000,-500.0,0.00019452,2]
[424421535,1780866643000,-166.16928916,0.00019452,2]
[424421520,1780866643000,-11267.67,0.00019452,2]
[424421545,1780866643000,-10499.29,0.00019452,2]